[Event "*** SCC Grand Prix: Titled Tuesday Blitz"]
[Site "Chess.com"]
[Date "2020.09.08"]
[Round "2"]
[White "Kotofeyca"]
[Black "gagtemp"]
[Result "1-0"]
[WhiteElo "2363"]
[BlackElo "1968"]
[TimeControl "180+1"]
[EndTime "10:13:27 PDT"]
[Termination "Kotofeyca won by resignation"]

1. d4 {[%clk 0:03:00.9]} 1... d5 {[%clk 0:02:56.1]} 2. c4 {[%clk 0:03:00.4]}
2... e6 {[%clk 0:02:56.2]} 3. Nc3 {[%clk 0:03:00.5]} 3... c5 {[%clk 0:02:55.5]}
4. cxd5 {[%clk 0:03:00.1]} 4... exd5 {[%clk 0:02:56.2]} 5. Nf3 {[%clk 0:03:00]}
5... Nc6 {[%clk 0:02:56.7]} 6. g3 {[%clk 0:03:00.1]} 6... Nf6 {[%clk 0:02:57]}
7. Bg2 {[%clk 0:03:00.4]} 7... Be7 {[%clk 0:02:57.6]} 8. O-O {[%clk 0:03:00.4]}
8... O-O {[%clk 0:02:58.3]} 9. dxc5 {[%clk 0:02:55.6]} 9... Bxc5 {[%clk
0:02:59.2]} 10. Bg5 {[%clk 0:02:55.1]} 10... d4 {[%clk 0:02:58.8]} 11. Bxf6
{[%clk 0:02:53.2]} 11... Qxf6 {[%clk 0:02:55.5]} 12. Nd5 {[%clk 0:02:53]} 12...
Qd8 {[%clk 0:02:54.8]} 13. Nd2 {[%clk 0:02:47.9]} 13... Re8 {[%clk 0:02:54.2]}
14. Rc1 {[%clk 0:02:46.2]} 14... Bf8 {[%clk 0:02:54.1]} 15. Ne4 {[%clk
0:02:42.5]} 15... Bg4 {[%clk 0:02:24.2]} 16. Re1 {[%clk 0:02:34.3]} 16... Qd7
{[%clk 0:02:10.7]} 17. Nef6+ {[%clk 0:02:27.6]} 1-0

[Event "*** SCC Grand Prix: Titled Tuesday Blitz"]
[Site "Chess.com"]
[Date "2020.09.08"]
[Round "2"]
[White "ChessWarrior3"]
[Black "Fischerev7"]
[Result "0-1"]
[WhiteElo "2158"]
[BlackElo "2408"]
[TimeControl "180+1"]
[EndTime "10:13:50 PDT"]
[Termination "Fischerev7 won by resignation"]

1. e4 {[%clk 0:03:00.9]} 1... c5 {[%clk 0:02:58.5]} 2. Nf3 {[%clk 0:02:59.7]}
2... d6 {[%clk 0:02:59]} 3. d4 {[%clk 0:02:58.8]} 3... cxd4 {[%clk 0:02:59.9]}
4. Nxd4 {[%clk 0:02:59.1]} 4... Nf6 {[%clk 0:03:00.2]} 5. Nc3 {[%clk 0:02:59.5]}
5... a6 {[%clk 0:03:00.7]} 6. f3 {[%clk 0:02:58.4]} 6... e5 {[%clk 0:02:58.9]}
7. Nb3 {[%clk 0:02:57.9]} 7... Be6 {[%clk 0:02:59.4]} 8. Be3 {[%clk 0:02:57.2]}
8... Be7 {[%clk 0:02:57.8]} 9. Qd2 {[%clk 0:02:57.1]} 9... O-O {[%clk
0:02:57.9]} 10. O-O-O {[%clk 0:02:56.3]} 10... Nbd7 {[%clk 0:02:57.3]} 11. g4
{[%clk 0:02:56.1]} 11... b5 {[%clk 0:02:57.6]} 12. h4 {[%clk 0:02:54.7]} 12...
b4 {[%clk 0:02:55.9]} 13. Ne2 {[%clk 0:02:53.4]} 13... a5 {[%clk 0:02:55.2]} 14.
h5 {[%clk 0:02:50.7]} 14... Nb6 {[%clk 0:02:50.3]} 15. g5 {[%clk 0:02:50.1]}
15... Nfd7 {[%clk 0:02:49.9]} 16. Ng3 {[%clk 0:02:48.1]} 16... a4 {[%clk
0:02:42.1]} 17. Na1 {[%clk 0:02:47.5]} 17... b3 {[%clk 0:02:38.7]} 18. a3 {[%clk
0:02:41.9]} 18... bxc2 {[%clk 0:02:37]} 19. Nxc2 {[%clk 0:02:41.6]} 19... Rc8
{[%clk 0:02:34.2]} 20. g6 {[%clk 0:02:40]} 20... Qc7 {[%clk 0:02:24.8]} 21. h6
{[%clk 0:02:28.7]} 21... fxg6 {[%clk 0:02:19.1]} 22. hxg7 {[%clk 0:02:28.3]}
22... Rxf3 {[%clk 0:02:14.5]} 23. Ba6 {[%clk 0:02:23.5]} 23... Rxg3 {[%clk
0:02:04]} 24. Bxb6 {[%clk 0:02:22]} 24... Nxb6 {[%clk 0:01:59.8]} 25. Bxc8
{[%clk 0:02:21]} 25... Qxc8 {[%clk 0:01:51.7]} 26. Qh6 {[%clk 0:02:21.1]} 26...
Bg5+ {[%clk 0:01:48.9]} 0-1

[Event "*** SCC Grand Prix: Titled Tuesday Blitz"]
[Site "Chess.com"]
[Date "2020.09.08"]
[Round "2"]
[White "JoliyRoger"]
[Black "ValeriyGrinev"]
[Result "0-1"]
[WhiteElo "2382"]
[BlackElo "2675"]
[TimeControl "180+1"]
[EndTime "10:14:25 PDT"]
[Termination "ValeriyGrinev won by resignation"]

1. Nf3 {[%clk 0:02:54.2]} 1... c5 {[%clk 0:02:59.5]} 2. c4 {[%clk 0:02:54.4]}
2... Nc6 {[%clk 0:02:59.1]} 3. Nc3 {[%clk 0:02:54.8]} 3... e5 {[%clk 0:02:57.5]}
4. e3 {[%clk 0:02:55.1]} 4... Nf6 {[%clk 0:02:56.1]} 5. d4 {[%clk 0:02:55.5]}
5... e4 {[%clk 0:02:56.4]} 6. Ne5 {[%clk 0:02:55]} 6... h5 {[%clk 0:02:56]} 7.
Be2 {[%clk 0:02:44.7]} 7... Qc7 {[%clk 0:02:54.7]} 8. Nxc6 {[%clk 0:02:42.6]}
8... dxc6 {[%clk 0:02:54.5]} 9. d5 {[%clk 0:02:40.3]} 9... Bd6 {[%clk
0:02:52.1]} 10. h3 {[%clk 0:02:29]} 10... h4 {[%clk 0:02:48.8]} 11. b3 {[%clk
0:02:26.2]} 11... Be5 {[%clk 0:02:47.9]} 12. Bb2 {[%clk 0:02:25.5]} 12... Bf5
{[%clk 0:02:45.5]} 13. Qc2 {[%clk 0:02:18.4]} 13... O-O-O {[%clk 0:02:42.9]} 14.
O-O-O {[%clk 0:02:13.2]} 14... cxd5 {[%clk 0:02:36.7]} 15. Nxd5 {[%clk
0:01:48.2]} 15... Nxd5 {[%clk 0:02:29.7]} 16. Rxd5 {[%clk 0:01:38.6]} 16... Rxd5
{[%clk 0:02:28.1]} 17. cxd5 {[%clk 0:01:39.1]} 17... Rd8 {[%clk 0:02:25.6]} 18.
Rd1 {[%clk 0:01:38]} 18... Kb8 {[%clk 0:02:24.6]} 19. Bg4 {[%clk 0:01:21.9]}
19... Bxg4 {[%clk 0:02:19.2]} 20. hxg4 {[%clk 0:01:22.4]} 20... Qe7 {[%clk
0:02:19]} 21. Kb1 {[%clk 0:01:16]} 21... Bxb2 {[%clk 0:02:18.5]} 22. Qxb2 {[%clk
0:01:16.3]} 22... Qg5 {[%clk 0:02:18.7]} 23. d6 {[%clk 0:01:11.4]} 23... Qxg4
{[%clk 0:02:15.8]} 24. Qe5 {[%clk 0:01:11.7]} 24... Qxd1+ {[%clk 0:02:15]} 0-1

[Event "*** SCC Grand Prix: Titled Tuesday Blitz"]
[Site "Chess.com"]
[Date "2020.09.08"]
[Round "2"]
[White "DarZay"]
[Black "Hard_Utilizator"]
[Result "0-1"]
[WhiteElo "2074"]
[BlackElo "2392"]
[TimeControl "180+1"]
[EndTime "10:14:27 PDT"]
[Termination "Hard_Utilizator won by resignation"]

1. e4 {[%clk 0:03:00.2]} 1... c5 {[%clk 0:02:59.3]} 2. Nf3 {[%clk 0:02:59.3]}
2... e6 {[%clk 0:02:59.6]} 3. d4 {[%clk 0:02:58.9]} 3... cxd4 {[%clk 0:03:00.5]}
4. Nxd4 {[%clk 0:02:59.3]} 4... a6 {[%clk 0:03:01]} 5. Nc3 {[%clk 0:02:50.9]}
5... Qc7 {[%clk 0:02:59.7]} 6. Be3 {[%clk 0:02:48]} 6... Bb4 {[%clk 0:02:58.8]}
7. Qd2 {[%clk 0:02:42.6]} 7... Nf6 {[%clk 0:02:58.3]} 8. Bd3 {[%clk 0:02:40.3]}
8... d5 {[%clk 0:02:57.8]} 9. f3 {[%clk 0:02:35.4]} 9... e5 {[%clk 0:02:57.5]}
10. O-O {[%clk 0:02:06.9]} 10... exd4 {[%clk 0:02:55.6]} 11. Bxd4 {[%clk
0:02:06.1]} 11... Bc5 {[%clk 0:02:48.4]} 12. Qe3 {[%clk 0:01:56]} 12... Bxd4
{[%clk 0:02:44.8]} 13. Qxd4 {[%clk 0:01:56]} 13... Nc6 {[%clk 0:02:45.5]} 14.
Qf2 {[%clk 0:01:54.9]} 14... dxe4 {[%clk 0:02:43.7]} 15. Nxe4 {[%clk 0:01:51]}
15... Nxe4 {[%clk 0:02:40.8]} 16. fxe4 {[%clk 0:01:49.7]} 16... O-O {[%clk
0:02:40]} 17. Bc4 {[%clk 0:01:47.3]} 17... Be6 {[%clk 0:02:39.8]} 18. Bxe6
{[%clk 0:01:46.8]} 18... fxe6 {[%clk 0:02:40]} 19. Qh4 {[%clk 0:01:41.2]} 19...
Qb6+ {[%clk 0:02:34.3]} 20. Kh1 {[%clk 0:01:39.9]} 20... Qxb2 {[%clk 0:02:32.3]}
21. Qg4 {[%clk 0:01:29.9]} 21... Rf6 {[%clk 0:02:21.2]} 22. Rab1 {[%clk
0:01:25.2]} 22... Raf8 {[%clk 0:02:14.6]} 23. Kg1 {[%clk 0:01:17.1]} 23... Rxf1+
{[%clk 0:02:11.3]} 24. Rxf1 {[%clk 0:01:14.9]} 24... Qd4+ {[%clk 0:02:11.9]} 0-1

[Event "*** SCC Grand Prix: Titled Tuesday Blitz"]
[Site "Chess.com"]
[Date "2020.09.08"]
[Round "2"]
[White "MikeKorovin"]
[Black "LyonBeast"]
[Result "0-1"]
[WhiteElo "2601"]
[BlackElo "3023"]
[TimeControl "180+1"]
[EndTime "10:14:28 PDT"]
[Termination "LyonBeast won by resignation"]

1. Nf3 {[%clk 0:02:57.4]} 1... d5 {[%clk 0:02:57.7]} 2. b3 {[%clk 0:02:53.2]}
2... Bg4 {[%clk 0:02:51.7]} 3. Bb2 {[%clk 0:02:53.9]} 3... e6 {[%clk 0:02:51.3]}
4. g3 {[%clk 0:02:49.6]} 4... Nf6 {[%clk 0:02:44.3]} 5. Bg2 {[%clk 0:02:49.5]}
5... Be7 {[%clk 0:02:41.4]} 6. O-O {[%clk 0:02:49.9]} 6... O-O {[%clk
0:02:39.5]} 7. d3 {[%clk 0:02:50.5]} 7... Nbd7 {[%clk 0:02:37.1]} 8. Nbd2 {[%clk
0:02:50.7]} 8... c6 {[%clk 0:02:31.6]} 9. e4 {[%clk 0:02:46.9]} 9... dxe4 {[%clk
0:02:25.4]} 10. dxe4 {[%clk 0:02:45.5]} 10... Nc5 {[%clk 0:02:24.3]} 11. Qe2
{[%clk 0:02:43.4]} 11... Qa5 {[%clk 0:02:19.2]} 12. a3 {[%clk 0:02:35.9]} 12...
Qa6 {[%clk 0:02:19.1]} 13. Qxa6 {[%clk 0:02:29.4]} 13... Nxa6 {[%clk 0:02:20]}
14. e5 {[%clk 0:02:29.3]} 14... Nd7 {[%clk 0:02:17]} 15. b4 {[%clk 0:02:10.1]}
15... Nb6 {[%clk 0:02:13.4]} 16. Rad1 {[%clk 0:01:55.9]} 16... Rad8 {[%clk
0:02:02.1]} 17. Ne4 {[%clk 0:01:29.4]} 17... Nc4 {[%clk 0:01:58.8]} 18. Bc1
{[%clk 0:01:25.8]} 18... Rxd1 {[%clk 0:01:58.6]} 19. Rxd1 {[%clk 0:01:22.9]}
19... Nxe5 {[%clk 0:01:59.5]} 0-1

[Event "*** SCC Grand Prix: Titled Tuesday Blitz"]
[Site "Chess.com"]
[Date "2020.09.08"]
[Round "2"]
[White "Panterov"]
[Black "NeverW84M8"]
[Result "0-1"]
[WhiteElo "2245"]
[BlackElo "2461"]
[TimeControl "180+1"]
[EndTime "10:14:38 PDT"]
[Termination "NeverW84M8 won by resignation"]

1. e4 {[%clk 0:03:00.9]} 1... e5 {[%clk 0:02:59.2]} 2. Nf3 {[%clk 0:03:00.5]}
2... Nc6 {[%clk 0:02:58.7]} 3. d4 {[%clk 0:03:00.6]} 3... exd4 {[%clk
0:02:58.7]} 4. Nxd4 {[%clk 0:03:01.5]} 4... Bb4+ {[%clk 0:02:57.9]} 5. c3 {[%clk
0:03:00.9]} 5... Bc5 {[%clk 0:02:58.2]} 6. Be3 {[%clk 0:03:00.9]} 6... Bb6
{[%clk 0:02:58.2]} 7. Bd3 {[%clk 0:02:54.7]} 7... Nf6 {[%clk 0:02:54.6]} 8. O-O
{[%clk 0:02:53.8]} 8... O-O {[%clk 0:02:53.1]} 9. Nxc6 {[%clk 0:02:43.5]} 9...
bxc6 {[%clk 0:02:52.8]} 10. Bg5 {[%clk 0:02:43.3]} 10... d6 {[%clk 0:02:50.4]}
11. Qf3 {[%clk 0:02:42]} 11... h6 {[%clk 0:02:49.1]} 12. Bxf6 {[%clk 0:02:41.8]}
12... Qxf6 {[%clk 0:02:48.7]} 13. Qxf6 {[%clk 0:02:41.7]} 13... gxf6 {[%clk
0:02:49.6]} 14. Kh1 {[%clk 0:02:37.9]} 14... a5 {[%clk 0:02:43.8]} 15. f3 {[%clk
0:02:37.4]} 15... a4 {[%clk 0:02:39.5]} 16. Nd2 {[%clk 0:02:35.1]} 16... d5
{[%clk 0:02:33.8]} 17. Rae1 {[%clk 0:02:26.7]} 17... Be6 {[%clk 0:02:24.4]} 18.
c4 {[%clk 0:02:20.3]} 18... Bd4 {[%clk 0:02:20.8]} 19. b3 {[%clk 0:02:15.5]}
19... Bc3 {[%clk 0:02:20.6]} 20. Rd1 {[%clk 0:02:09.9]} 20... axb3 {[%clk
0:02:18.7]} 21. axb3 {[%clk 0:02:10.4]} 21... Ra2 {[%clk 0:02:15.7]} 22. Nb1
{[%clk 0:02:07.2]} 22... Bb4 {[%clk 0:02:13]} 23. exd5 {[%clk 0:02:07]} 23...
cxd5 {[%clk 0:02:12.3]} 24. cxd5 {[%clk 0:02:07]} 24... Bxd5 {[%clk 0:02:12]}
25. Bh7+ {[%clk 0:02:05.2]} 25... Kxh7 {[%clk 0:02:11.2]} 26. Rxd5 {[%clk
0:02:06.1]} 26... Re8 {[%clk 0:02:03.4]} 27. Rd4 {[%clk 0:01:59.2]} 27... c5
{[%clk 0:02:02.6]} 28. Re4 {[%clk 0:01:58.6]} 28... Rxe4 {[%clk 0:01:56.8]} 29.
fxe4 {[%clk 0:01:58.1]} 29... Rb2 {[%clk 0:01:56.5]} 30. g4 {[%clk 0:01:50.5]}
30... Kg6 {[%clk 0:01:53.4]} 31. Rd1 {[%clk 0:01:49.6]} 31... Rxb3 {[%clk
0:01:52.4]} 32. Kg2 {[%clk 0:01:44]} 32... Rb2+ {[%clk 0:01:52.4]} 33. Kf3
{[%clk 0:01:43.9]} 33... Rxh2 {[%clk 0:01:49]} 0-1

[Event "*** SCC Grand Prix: Titled Tuesday Blitz"]
[Site "Chess.com"]
[Date "2020.09.08"]
[Round "2"]
[White "WinstonSilvakov"]
[Black "dachessmandan"]
[Result "0-1"]
[WhiteElo "2139"]
[BlackElo "2402"]
[TimeControl "180+1"]
[EndTime "10:14:39 PDT"]
[Termination "dachessmandan won by resignation"]

1. d4 {[%clk 0:03:00.9]} 1... Nf6 {[%clk 0:02:59.4]} 2. e3 {[%clk 0:02:59.8]}
2... e6 {[%clk 0:02:57.6]} 3. Bd3 {[%clk 0:02:59.2]} 3... c5 {[%clk 0:02:57.8]}
4. c3 {[%clk 0:02:58.6]} 4... Nc6 {[%clk 0:02:57.6]} 5. f4 {[%clk 0:02:57.3]}
5... Be7 {[%clk 0:02:52.7]} 6. Nd2 {[%clk 0:02:56.3]} 6... b6 {[%clk 0:02:52.8]}
7. Ngf3 {[%clk 0:02:56.4]} 7... d6 {[%clk 0:02:52.4]} 8. O-O {[%clk 0:02:55.9]}
8... Bb7 {[%clk 0:02:52.7]} 9. Qe2 {[%clk 0:02:56.1]} 9... O-O {[%clk
0:02:50.7]} 10. e4 {[%clk 0:02:56.3]} 10... Qc7 {[%clk 0:02:38]} 11. e5 {[%clk
0:02:54]} 11... Nd5 {[%clk 0:02:17.2]} 12. Ne4 {[%clk 0:02:51]} 12... cxd4
{[%clk 0:02:13.8]} 13. Nfg5 {[%clk 0:02:23.7]} 13... h6 {[%clk 0:01:44.6]} 14.
Nf6+ {[%clk 0:02:10.3]} 14... Bxf6 {[%clk 0:01:32.1]} 15. Nh7 {[%clk 0:01:57.6]}
15... Be7 {[%clk 0:01:28]} 16. Nxf8 {[%clk 0:01:55.2]} 16... Bxf8 {[%clk
0:01:22]} 17. Rf3 {[%clk 0:01:38.8]} 17... dxe5 {[%clk 0:01:17.9]} 0-1

[Event "*** SCC Grand Prix: Titled Tuesday Blitz"]
[Site "Chess.com"]
[Date "2020.09.08"]
[Round "2"]
[White "Korchmar_Vasiliy"]
[Black "Quiet_Desperation"]
[Result "1-0"]
[WhiteElo "2607"]
[BlackElo "1993"]
[TimeControl "180+1"]
[EndTime "10:14:48 PDT"]
[Termination "Korchmar_Vasiliy won by resignation"]

1. d4 {[%clk 0:03:00.9]} 1... d5 {[%clk 0:02:28.6]} 2. Nf3 {[%clk 0:03:00.1]}
2... c6 {[%clk 0:02:25.9]} 3. Bf4 {[%clk 0:03:00.3]} 3... Bf5 {[%clk 0:02:23.4]}
4. e3 {[%clk 0:02:59.7]} 4... e6 {[%clk 0:02:21.9]} 5. Nbd2 {[%clk 0:02:58.5]}
5... Nf6 {[%clk 0:02:22]} 6. c4 {[%clk 0:02:56.5]} 6... Be7 {[%clk 0:02:13]} 7.
Qb3 {[%clk 0:02:56.4]} 7... Qb6 {[%clk 0:01:58.4]} 8. c5 {[%clk 0:02:56.5]} 8...
Qxb3 {[%clk 0:01:50.7]} 9. axb3 {[%clk 0:02:57.4]} 9... Nbd7 {[%clk 0:01:45.5]}
10. b4 {[%clk 0:02:57.5]} 10... O-O {[%clk 0:01:36.5]} 11. b5 {[%clk 0:02:53.1]}
11... Nh5 {[%clk 0:01:27.8]} 12. Bc7 {[%clk 0:02:42.3]} 12... Rfc8 {[%clk
0:01:25]} 13. Ba5 {[%clk 0:02:39.2]} 13... b6 {[%clk 0:01:20.8]} 14. bxc6 {[%clk
0:02:37.5]} 14... Rxc6 {[%clk 0:01:17.3]} 15. Bb5 {[%clk 0:02:08.6]} 15... Rc7
{[%clk 0:01:15.8]} 16. Bxb6 {[%clk 0:01:56.3]} 16... Nxb6 {[%clk 0:01:12.2]} 17.
cxb6 {[%clk 0:01:56.4]} 17... Rc2 {[%clk 0:01:03.1]} 18. Rxa7 {[%clk 0:01:49.4]}
1-0

[Event "*** SCC Grand Prix: Titled Tuesday Blitz"]
[Site "Chess.com"]
[Date "2020.09.08"]
[Round "2"]
[White "iLuusions"]
[Black "AnishOnYoutube"]
[Result "0-1"]
[WhiteElo "2579"]
[BlackElo "2952"]
[TimeControl "180+1"]
[EndTime "10:14:50 PDT"]
[Termination "AnishOnYoutube won by resignation"]

1. Nf3 {[%clk 0:03:00.9]} 1... d5 {[%clk 0:02:59.4]} 2. e3 {[%clk 0:03:00.5]}
2... Nf6 {[%clk 0:02:59.2]} 3. c4 {[%clk 0:03:01.4]} 3... c6 {[%clk 0:02:59.3]}
4. Nc3 {[%clk 0:03:00.6]} 4... e6 {[%clk 0:02:58.9]} 5. b3 {[%clk 0:03:00.4]}
5... Bd6 {[%clk 0:02:58.3]} 6. Bb2 {[%clk 0:03:00.5]} 6... O-O {[%clk
0:02:58.1]} 7. d4 {[%clk 0:03:00.8]} 7... Nbd7 {[%clk 0:02:58]} 8. Bd3 {[%clk
0:03:00.5]} 8... Re8 {[%clk 0:02:49.1]} 9. Qc2 {[%clk 0:03:00.4]} 9... Qe7
{[%clk 0:02:48.7]} 10. O-O {[%clk 0:02:59.4]} 10... e5 {[%clk 0:02:48.9]} 11.
cxd5 {[%clk 0:02:59.7]} 11... e4 {[%clk 0:02:31.5]} 12. Nxe4 {[%clk 0:02:42.5]}
12... Nxe4 {[%clk 0:02:31.3]} 13. dxc6 {[%clk 0:02:41.1]} 13... Nb6 {[%clk
0:01:35.3]} 14. Rac1 {[%clk 0:02:18.8]} 14... bxc6 {[%clk 0:01:32.5]} 15. a4
{[%clk 0:02:15.7]} 15... Bd7 {[%clk 0:01:09.7]} 16. a5 {[%clk 0:02:14.8]} 16...
Nd5 {[%clk 0:01:09.4]} 17. Ne5 {[%clk 0:02:12.5]} 17... Nb4 {[%clk 0:01:07.6]}
18. Qb1 {[%clk 0:02:05.8]} 18... Nd2 {[%clk 0:00:58.1]} 19. Bxh7+ {[%clk
0:02:05.3]} 19... Kh8 {[%clk 0:00:55.1]} 20. Nxf7+ {[%clk 0:01:58.7]} 20... Qxf7
{[%clk 0:00:53.2]} 0-1

[Event "*** SCC Grand Prix: Titled Tuesday Blitz"]
[Site "Chess.com"]
[Date "2020.09.08"]
[Round "2"]
[White "Andrii_Prydun"]
[Black "CzechmVIII"]
[Result "1-0"]
[WhiteElo "2410"]
[BlackElo "2168"]
[TimeControl "180+1"]
[EndTime "10:14:51 PDT"]
[Termination "Andrii_Prydun won by resignation"]

1. d4 {[%clk 0:02:59.1]} 1... Nf6 {[%clk 0:02:59.3]} 2. Nc3 {[%clk 0:02:58.6]}
2... d5 {[%clk 0:02:58.4]} 3. Bf4 {[%clk 0:02:51.3]} 3... c6 {[%clk 0:02:57.4]}
4. f3 {[%clk 0:02:49.1]} 4... Nbd7 {[%clk 0:02:44.6]} 5. e4 {[%clk 0:02:45.5]}
5... dxe4 {[%clk 0:02:35.1]} 6. fxe4 {[%clk 0:02:44.8]} 6... e5 {[%clk
0:02:33.8]} 7. dxe5 {[%clk 0:02:43.1]} 7... Ng8 {[%clk 0:02:04.2]} 8. Bc4 {[%clk
0:02:41.9]} 8... Qa5 {[%clk 0:01:39.8]} 9. Bxf7+ {[%clk 0:02:24]} 9... Kxf7
{[%clk 0:01:39.6]} 10. Qh5+ {[%clk 0:02:24.1]} 10... Ke7 {[%clk 0:01:24.7]} 11.
Bg5+ {[%clk 0:02:21.3]} 11... Ngf6 {[%clk 0:00:37]} 12. Bxf6+ {[%clk 0:02:17.5]}
1-0

[Event "*** SCC Grand Prix: Titled Tuesday Blitz"]
[Site "Chess.com"]
[Date "2020.09.08"]
[Round "2"]
[White "RusPakhom"]
[Black "IvanSoriano1"]
[Result "1-0"]
[WhiteElo "2285"]
[BlackElo "2456"]
[TimeControl "180+1"]
[EndTime "10:14:55 PDT"]
[Termination "RusPakhom won by resignation"]

1. e4 {[%clk 0:03:00.9]} 1... c5 {[%clk 0:02:58.5]} 2. Nf3 {[%clk 0:03:00.5]}
2... d6 {[%clk 0:02:58.8]} 3. c3 {[%clk 0:03:00.8]} 3... Nf6 {[%clk 0:02:56.1]}
4. Bc4 {[%clk 0:03:00.8]} 4... g6 {[%clk 0:02:49.7]} 5. O-O {[%clk 0:03:00.4]}
5... Bg7 {[%clk 0:02:49.6]} 6. Re1 {[%clk 0:03:00.6]} 6... O-O {[%clk
0:02:49.5]} 7. h3 {[%clk 0:03:00.9]} 7... Nc6 {[%clk 0:02:49.1]} 8. d4 {[%clk
0:03:01]} 8... cxd4 {[%clk 0:02:48.4]} 9. cxd4 {[%clk 0:03:01.6]} 9... d5 {[%clk
0:02:48.6]} 10. exd5 {[%clk 0:03:00.7]} 10... Nxd5 {[%clk 0:02:49.5]} 11. Nc3
{[%clk 0:03:00.7]} 11... Nb6 {[%clk 0:02:49.4]} 12. Bb3 {[%clk 0:03:00.6]} 12...
Nxd4 {[%clk 0:02:49]} 13. Nxd4 {[%clk 0:02:59.8]} 13... Bxd4 {[%clk 0:02:49.4]}
14. Bg5 {[%clk 0:02:54.5]} 14... Re8 {[%clk 0:02:48.3]} 15. Qf3 {[%clk
0:02:50.6]} 15... Bf6 {[%clk 0:02:38.3]} 16. Bxf6 {[%clk 0:02:48.4]} 16... exf6
{[%clk 0:02:39.2]} 17. Rxe8+ {[%clk 0:02:47.6]} 17... Qxe8 {[%clk 0:02:40.1]}
18. Qxf6 {[%clk 0:02:48.1]} 18... Bf5 {[%clk 0:02:38.3]} 19. Nb5 {[%clk
0:02:35.2]} 19... Nd7 {[%clk 0:02:01.6]} 20. Qd4 {[%clk 0:02:21.1]} 20... Qe5
{[%clk 0:01:38.5]} 21. Qxe5 {[%clk 0:02:05.6]} 21... Nxe5 {[%clk 0:01:39.4]} 22.
Re1 {[%clk 0:02:05.4]} 22... Re8 {[%clk 0:01:34.6]} 23. Kh1 {[%clk 0:01:55.9]}
23... Bd7 {[%clk 0:01:31.9]} 24. Nd6 {[%clk 0:01:53.2]} 24... Re7 {[%clk
0:01:32]} 25. Nxf7 {[%clk 0:01:41.9]} 25... Rxf7 {[%clk 0:01:24.7]} 26. Rxe5
{[%clk 0:01:40.3]} 1-0

[Event "*** SCC Grand Prix: Titled Tuesday Blitz"]
[Site "Chess.com"]
[Date "2020.09.08"]
[Round "2"]
[White "chessmadara"]
[Black "PavelChernomordik"]
[Result "0-1"]
[WhiteElo "1839"]
[BlackElo "2352"]
[TimeControl "180+1"]
[EndTime "10:15:00 PDT"]
[Termination "PavelChernomordik won by checkmate"]

1. e4 {[%clk 0:03:00.9]} 1... g6 {[%clk 0:02:59.7]} 2. d4 {[%clk 0:03:00.2]}
2... Bg7 {[%clk 0:03:00.2]} 3. Nc3 {[%clk 0:02:59.9]} 3... d6 {[%clk 0:03:00]}
4. Be3 {[%clk 0:02:59]} 4... a6 {[%clk 0:02:59.9]} 5. Qd2 {[%clk 0:02:58.5]}
5... b5 {[%clk 0:02:59.4]} 6. a3 {[%clk 0:02:52]} 6... Bb7 {[%clk 0:02:57.1]} 7.
f3 {[%clk 0:02:51.8]} 7... Nd7 {[%clk 0:02:56.6]} 8. O-O-O {[%clk 0:02:51.4]}
8... Rc8 {[%clk 0:02:51.3]} 9. Kb1 {[%clk 0:02:50.8]} 9... c5 {[%clk 0:02:49.3]}
10. Nge2 {[%clk 0:02:50.4]} 10... Qc7 {[%clk 0:02:44.7]} 11. g4 {[%clk 0:02:41]}
11... Nb6 {[%clk 0:02:39.8]} 12. Nc1 {[%clk 0:02:29.8]} 12... b4 {[%clk
0:02:31.1]} 13. axb4 {[%clk 0:02:26.6]} 13... cxb4 {[%clk 0:02:30.1]} 14. N3a2
{[%clk 0:02:24.9]} 14... a5 {[%clk 0:02:21.5]} 15. Bb5+ {[%clk 0:02:23.2]} 15...
Bc6 {[%clk 0:02:20.1]} 16. Bxc6+ {[%clk 0:02:22.7]} 16... Qxc6 {[%clk
0:02:18.5]} 17. b3 {[%clk 0:02:15.2]} 17... Nf6 {[%clk 0:02:05.9]} 18. h4 {[%clk
0:02:13.8]} 18... h5 {[%clk 0:02:01.5]} 19. Rhg1 {[%clk 0:01:53.3]} 19... hxg4
{[%clk 0:01:59.8]} 20. e5 {[%clk 0:01:44.5]} 20... Nfd5 {[%clk 0:01:55.3]} 21.
fxg4 {[%clk 0:01:40.1]} 21... Nxe3 {[%clk 0:01:51.5]} 22. Qxe3 {[%clk 0:01:41]}
22... Qxc2+ {[%clk 0:01:50.8]} 23. Ka1 {[%clk 0:01:39.3]} 23... Nd5 {[%clk
0:01:46]} 24. Qf3 {[%clk 0:01:32.3]} 24... Nc3 {[%clk 0:01:33.1]} 25. Rde1
{[%clk 0:01:24.4]} 25... Qb1# {[%clk 0:01:31.1]} 0-1

[Event "*** SCC Grand Prix: Titled Tuesday Blitz"]
[Site "Chess.com"]
[Date "2020.09.08"]
[Round "2"]
[White "DrVelja"]
[Black "LawrenceTrent"]
[Result "1-0"]
[WhiteElo "2821"]
[BlackElo "2529"]
[TimeControl "180+1"]
[EndTime "10:15:07 PDT"]
[Termination "DrVelja won by resignation"]

1. e4 {[%clk 0:03:00.9]} 1... c5 {[%clk 0:02:51.4]} 2. Nc3 {[%clk 0:03:00.8]}
2... Nc6 {[%clk 0:02:49.6]} 3. f4 {[%clk 0:03:00.8]} 3... e6 {[%clk 0:02:48.7]}
4. Nf3 {[%clk 0:03:00.2]} 4... d5 {[%clk 0:02:48.6]} 5. Bb5 {[%clk 0:03:00.5]}
5... Ne7 {[%clk 0:02:47.6]} 6. O-O {[%clk 0:02:59.4]} 6... a6 {[%clk 0:02:40.5]}
7. Bxc6+ {[%clk 0:02:52.6]} 7... Nxc6 {[%clk 0:02:41.4]} 8. d3 {[%clk
0:02:51.1]} 8... Be7 {[%clk 0:02:41.1]} 9. Qe1 {[%clk 0:02:47.6]} 9... O-O
{[%clk 0:02:40.9]} 10. Qg3 {[%clk 0:02:35.9]} 10... b5 {[%clk 0:02:36.4]} 11. f5
{[%clk 0:02:32.4]} 11... b4 {[%clk 0:02:34.8]} 12. Ne2 {[%clk 0:02:18.5]} 12...
dxe4 {[%clk 0:02:33.2]} 13. dxe4 {[%clk 0:02:18.1]} 13... exf5 {[%clk 0:02:33]}
14. Bh6 {[%clk 0:02:17.9]} 14... g6 {[%clk 0:02:16.5]} 15. Rad1 {[%clk
0:02:14.8]} 15... Qb6 {[%clk 0:02:15.3]} 16. Bxf8 {[%clk 0:02:13]} 16... Bxf8
{[%clk 0:02:16.2]} 17. e5 {[%clk 0:02:08.9]} 17... Bg7 {[%clk 0:02:09.5]} 18.
Nf4 {[%clk 0:02:05.3]} 18... c4+ {[%clk 0:01:54.2]} 19. Kh1 {[%clk 0:02:04.8]}
19... Qa5 {[%clk 0:01:47.2]} 20. Nd5 {[%clk 0:02:01.5]} 20... Be6 {[%clk
0:01:47]} 21. Nf6+ {[%clk 0:01:57]} 21... Kh8 {[%clk 0:01:41.5]} 22. Rd6 {[%clk
0:01:45.8]} 22... Nxe5 {[%clk 0:01:35.1]} 23. Nxe5 {[%clk 0:01:43.9]} 23... Bxf6
{[%clk 0:01:35.2]} 24. Nxf7+ {[%clk 0:01:44.4]} 24... Kg7 {[%clk 0:01:23.3]} 25.
Rxe6 {[%clk 0:01:38.3]} 25... Kxf7 {[%clk 0:01:23.5]} 26. Qd6 {[%clk 0:01:33.6]}
26... Qd8 {[%clk 0:01:22.8]} 27. Rxf6+ {[%clk 0:01:33.9]} 1-0